Workbook

Sheet Simulador
N2: DEPÓSITO A PLAZO FIJO
B5: Periodicidad | T5: Nº DE CUOTAS | U5: FECHA | V5: SALDO CAPITAL | W5: =IF($B$9=3,"RENTA","INTERÉS") -> INTERÉS
B6: DPF Mensual | E6: TASAS DEL TARIFARIO | O6: IMPORTE | Q6: 3000 | T6: 0 | U6: =$Q$7 -> 2020-01-02 | V6: =$Q$6 -> 3000
B7: DPF Vencimiento | O7: FECHA DE DEPÓSITO | Q7: 2020-01-02 | T7: =IFERROR(IF($B$9=2,IF(T6+1=1,1,""),IF(T6+1<=ROUNDUP($Q$11/30,0),T6+1,"")),"") -> 1 | U7: =IF(T7<>"",IF(T8="",U6+($Q$11-30*(T7-1)),U6+30),"") -> 2020-02-01 | V7: =IFERROR(IF(T7<>"",IF($B$9=3,V6-(W7-ROUND(V6*((1+$Q$12)^(30/360)-1),2)),$V$6),""),"-") -> 3000 | W7: =IFERROR(IF(T7<>"",IF($B$9=3,(IF(T8<>"",ROUND(PMT(((1+$Q$12)^(1/12)-1),($Q$11/30),-$Q$6),2),V6+ROUND(V6*((1+$Q$12)^(30/360)-1),2))),ROUND($V$6*((1+$Q$12)^((U7-U6)/360)-1),2)),""),$Q$12) -> 10.54
B8: DPF Renta Control | E8: PERSONA NATURAL | I8: CODIGO | K8: Activación | O8: SUB PRODUCTO | T8: =IFERROR(IF($B$9=2,IF(T7+1=1,1,""),IF(T7+1<=ROUNDUP($Q$11/30,0),T7+1,"")),"") -> 2 | U8: =IF(T8<>"",IF(T9="",U7+($Q$11-30*(T8-1)),U7+30),"") -> 2020-03-02 | V8: =IFERROR(IF(T8<>"",IF($B$9=3,V7-(W8-ROUND(V7*((1+$Q$12)^(30/360)-1),2)),$V$6),""),"-") -> 3000 | W8: =IFERROR(IF(T8<>"",IF($B$9=3,(IF(T9<>"",ROUND(PMT(((1+$Q$12)^(1/12)-1),($Q$11/30),-$Q$6),2),V7+ROUND(V7*((1+$Q$12)^(30/360)-1),2))),ROUND($V$6*((1+$Q$12)^((U8-U7)/360)-1),2)),""),$Q$12) -> 10.54
B9: 1 | E9: MONEDA NACIONAL | I9: 11 | K9: =$B$22=$I9 -> TRUE | O9: PERSONA | T9: 3 | U9: 2020-04-01 | V9: 3000 | W9: 10.54
O10: MONEDA | T10: 4 | U10: 2020-05-01 | V10: 3000 | W10: 10.54
B11: Persona | H11: 0 | I11: =H12+1 -> 35001 | J11: =I12+1 -> 50001 | K11: =J12+1 -> 100001 | L11: =K12+1 -> 500001 | O11: PLAZO (días) | Q11: 360 | T11: 5 | U11: 2020-05-31 | V11: 3000 | W11: 10.54
B12: Natural | E12: Desde | G12: Hasta | H12: 35000 | I12: 50000 | J12: 100000 | K12: 500000 | L12: mas | O12: TASA DE INTERES (TEA) | Q12: =INDEX($H$79:$L$88,MAX($D$79:$D$88),MAX($H$76:$L$76)) -> 0.043 | T12: 6 | U12: 2020-06-30 | V12: 3000 | W12: 10.54
B13: Juridica | E13: 30 | F13: - | G13: 59 | H13: =I13 -> 0.01 | I13: 0.01 | J13: 0.011 | K13: 0.012 | L13: =K13 -> 0.012 | O13: *Plazo máximo de simulación 10 años ó 3,600 días. | T13: 7 | U13: 2020-07-30 | V13: 3000 | W13: 10.54
B14: 1 | E14: 60 | F14: - | G14: 89 | H14: =I14 -> 0.013 | I14: 0.013 | J14: 0.014 | K14: 0.015 | L14: =K14 -> 0.015 | O14: INTERESES GENERADOS | Q14: =IF(IFERROR(IF($B$9=3,SUM($W:$W)-$V$6,SUM($W:$W)),"Aumentar el plazo")<0,"Revise",IFERROR(IF($B$9=3,SUM($W:$W)-$V$6,SUM($W:$W)),"Aumentar el plazo")) -> 126.48 | T14: 8 | U14: 2020-08-29 | V14: 3000 | W14: 10.54
E15: =G14+1 -> 90 | F15: - | G15: 119 | H15: 0.02 | I15: 0.02 | J15: 0.021 | K15: 0.022 | L15: 0.022 | O15: TREA | Q15: =IFERROR(IF($B$9=3,$Q$12,(($V$7+$W$7)/$V$7)^(360/($U$7-$U$6))-1),"Aumentar el plazo") -> 0.04298428829 | T15: 9 | U15: 2020-09-28 | V15: 3000 | W15: 10.54
B16: Moneda | E16: =G15+1 -> 120 | F16: - | G16: 179 | H16: 0.025 | I16: 0.025 | J16: 0.026 | K16: 0.027 | L16: 0.027 | T16: 10 | U16: 2020-10-28 | V16: 3000 | W16: 10.54
B17: Nacional | E17: 180 | F17: - | G17: 269 | H17: 0.032 | I17: 0.032 | J17: 0.035 | K17: 0.035 | L17: 0.035 | T17: 11 | U17: 2020-11-27 | V17: 3000 | W17: 10.54
B18: Extranjera | E18: 270 | F18: - | G18: 359 | H18: 0.035 | I18: 0.035 | J18: 0.036 | K18: 0.037 | L18: 0.037 | T18: 12 | U18: 2020-12-27 | V18: 3000 | W18: 10.54
B19: 1 | E19: 360 | F19: - | G19: 539 | H19: 0.043 | I19: 0.043 | J19: 0.044 | K19: 0.045 | L19: 0.045
E20: 540 | F20: - | G20: 719 | H20: 0.0455 | I20: 0.0455 | J20: 0.0465 | K20: 0.0475 | L20: 0.0475
B21: Codigo (Pe-Mo) | E21: 720 | F21: - | G21: 1080 | H21: 0.048 | I21: 0.048 | J21: 0.049 | K21: 0.05 | L21: 0.05
B22: =VALUE(B14&B19) -> 11 | E22: 1081 | F22: - | G22: mas | H22: 0.048 | I22: =I21 -> 0.048 | J22: =J21 -> 0.049 | K22: =K21 -> 0.05 | L22: 0.05
B24: RESTRICCIONES | E24: PERSONA NATURAL | I24: CODIGO | K24: Activación
E25: MONEDA EXTRANJERA | I25: 12 | K25: =$B$22=$I25 -> FALSE
B26: Días
B27: =IF(OR($B$22=11,$B$22=21),30,31) -> 30 | H27: 0 | I27: =H28+1 -> 35001 | J27: =I28+1 -> 50001 | K27: =J28+1 -> 100001 | L27: =K28+1 -> 500001
E28: Desde | G28: Hasta | H28: 35000 | I28: 50000 | J28: 100000 | K28: 500000 | L28: mas
E29: 31 | F29: - | G29: 59 | H29: =I29 -> 0.001 | I29: =J29 -> 0.001 | J29: 0.001 | K29: 0.0015 | L29: =K29 -> 0.0015
E30: 60 | F30: - | G30: 89 | H30: 0.001 | I30: 0.001 | J30: 0.001 | K30: 0.0015 | L30: =K30 -> 0.0015
E31: =G30+1 -> 90 | F31: - | G31: 119 | H31: 0.001 | I31: 0.001 | J31: 0.001 | K31: 0.0015 | L31: 0.0015
E32: =G31+1 -> 120 | F32: - | G32: 179 | H32: 0.001 | I32: 0.001 | J32: 0.001 | K32: 0.0015 | L32: 0.0015
E33: 180 | F33: - | G33: 269 | H33: 0.001 | I33: 0.001 | J33: 0.001 | K33: 0.0015 | L33: 0.0015
E34: 270 | F34: - | G34: 359 | H34: 0.001 | I34: 0.001 | J34: 0.001 | K34: 0.0015 | L34: 0.0015
E35: 360 | F35: - | G35: 539 | H35: 0.001 | I35: 0.001 | J35: 0.001 | K35: 0.0015 | L35: 0.0015
E36: 540 | F36: - | G36: 719 | H36: 0.001 | I36: 0.001 | J36: 0.001 | K36: 0.0015 | L36: 0.0015
E37: 720 | F37: - | G37: 1080 | H37: 0.002 | I37: 0.002 | J37: 0.002 | K37: 0.003 | L37: 0.003
E38: 1081 | F38: - | G38: mas | H38: 0.002 | I38: 0.002 | J38: 0.002 | K38: 0.003 | L38: 0.003
E40: PERSONA JURIDICA | I40: CODIGO | K40: Activación
E41: MONEDA NACIONAL | I41: 21 | K41: =$B$22=$I41 -> FALSE
H43: 0 | I43: =H44+1 -> 35001 | J43: =I44+1 -> 50001 | K43: =J44+1 -> 100001 | L43: =K44+1 -> 500001
E44: Desde | G44: Hasta | H44: 35000 | I44: 50000 | J44: 100000 | K44: 500000 | L44: mas
E45: 30 | F45: - | G45: 59 | H45: =I45 -> 0.005 | I45: 0.005 | J45: 0.005 | K45: 0.005 | L45: =K45 -> 0.005
E46: 60 | F46: - | G46: 89 | H46: 0.0065 | I46: 0.0065 | J46: 0.0065 | K46: 0.0065 | L46: =K46 -> 0.0065
E47: 90 | F47: - | G47: 119 | H47: 0.0075 | I47: 0.0075 | J47: 0.0075 | K47: 0.0075 | L47: 0.0075
E48: 120 | F48: - | G48: 179 | H48: 0.0085 | I48: 0.0085 | J48: 0.0085 | K48: 0.0085 | L48: 0.0085
E49: 180 | F49: - | G49: 269 | H49: 0.009 | I49: 0.009 | J49: 0.009 | K49: 0.01 | L49: 0.01
E50: 270 | F50: - | G50: 359 | H50: 0.0115 | I50: 0.0115 | J50: 0.0115 | K50: 0.0125 | L50: 0.0125
E51: =G50+1 -> 360 | F51: - | G51: 539 | H51: 0.014 | I51: 0.014 | J51: 0.014 | K51: 0.015 | L51: 0.015
E52: =G51+1 -> 540 | F52: - | G52: 719 | H52: 0.014 | I52: 0.014 | J52: =J51 -> 0.014 | K52: 0.015 | L52: 0.015
E53: =G52+1 -> 720 | F53: - | G53: 1080 | H53: 0.014 | I53: 0.014 | J53: 0.014 | K53: 0.015 | L53: 0.015
E54: =G53+1 -> 1081 | F54: - | G54: mas | H54: 0.014 | I54: 0.014 | J54: 0.014 | K54: 0.015 | L54: 0.015
E56: PERSONA JURIDICA | I56: CODIGO | K56: Activación
E57: MONEDA EXTRANJERA | I57: 22 | K57: =$B$22=$I57 -> FALSE
H59: 0 | I59: =H60+1 -> 35001 | J59: =I60+1 -> 50001 | K59: =J60+1 -> 100001 | L59: =K60+1 -> 500001
E60: Desde | G60: Hasta | H60: 35000 | I60: 50000 | J60: 100000 | K60: 500000 | L60: mas
E61: 31 | F61: - | G61: 59 | H61: =I61 -> 0.001 | I61: 0.001 | J61: 0.001 | K61: 0.0015 | L61: =K61 -> 0.0015
E62: 60 | F62: - | G62: 89 | H62: 0.001 | I62: 0.001 | J62: 0.001 | K62: 0.0015 | L62: =K62 -> 0.0015
E63: 90 | F63: - | G63: 119 | H63: 0.001 | I63: 0.001 | J63: 0.001 | K63: 0.0015 | L63: 0.0015
E64: 120 | F64: - | G64: 179 | H64: 0.001 | I64: 0.001 | J64: 0.001 | K64: 0.0015 | L64: 0.0015
E65: 180 | F65: - | G65: 269 | H65: 0.001 | I65: 0.001 | J65: 0.001 | K65: 0.0015 | L65: 0.0015
E66: 270 | F66: - | G66: 359 | H66: 0.001 | I66: 0.001 | J66: 0.001 | K66: 0.0015 | L66: 0.0015
E67: =G66+1 -> 360 | F67: - | G67: 539 | H67: 0.001 | I67: 0.001 | J67: 0.001 | K67: 0.0015 | L67: 0.0015
E68: =G67+1 -> 540 | F68: - | G68: 719 | H68: 0.001 | I68: 0.001 | J68: 0.001 | K68: 0.0015 | L68: 0.0015
E69: =G68+1 -> 720 | F69: - | G69: 1080 | H69: 0.002 | I69: 0.002 | J69: 0.002 | K69: 0.003 | L69: 0.003
E70: =G69+1 -> 1081 | F70: - | G70: mas | H70: 0.002 | I70: 0.002 | J70: 0.002 | K70: 0.003 | L70: 0.003
E72: TABLERO MATRIZ | T72: =IFERROR(IF($B$9=2,IF(T71+1=1,1,""),IF(T71+1<=ROUNDUP($Q$11/30,0),T71+1,"")),"") ->  | U72: =IF(T72<>"",IF(T73="",U71+($Q$11-30*(T72-1)),U71+30),"") ->  | V72: =IFERROR(IF(T72<>"",IF($B$9=3,V71-(W72-ROUND(V71*((1+$Q$12)^(30/360)-1),2)),$V$6),""),"-") ->  | W72: =IFERROR(IF(T72<>"",IF($B$9=3,(IF(T73<>"",ROUND(PMT(((1+$Q$12)^(1/12)-1),($Q$11/30),-$Q$6),2),V71+ROUND(V71*((1+$Q$12)^(30/360)-1),2))),ROUND($V$6*((1+$Q$12)^((U72-U71)/360)-1),2)),""),$Q$12) -> 
E74: Se actualiza automáticamente, está en función de los códigos
H76: =IF(AND($Q$6>=H$77,$Q$6<=H$78),1,"") -> 1 | I76: =IF(AND($Q$6>=I$77,$Q$6<=I$78),2,"") ->  | J76: =IF(AND($Q$6>=J$77,$Q$6<=J$78),3,"") ->  | K76: =IF(AND($Q$6>=K$77,$Q$6<=K$78),4,"") ->  | L76: =IF(AND($Q$6>=L$77),5,"") -> 
H77: 0 | I77: =H78+1 -> 35001 | J77: =I78+1 -> 50001 | K77: =J78+1 -> 100001 | L77: =K78+1 -> 500001
E78: Desde | G78: Hasta | H78: 35000 | I78: 50000 | J78: 100000 | K78: 500000 | L78: mas
D79: =IF(AND($Q$11>=$E79,$Q$11<=$G79),1,"") ->  | E79: 30 | F79: - | G79: 59 | H79: =IF($B$9=3,"MIN. 1,800 días",IF($B$22=$I$9,H13,IF($B$22=$I$25,H29,IF($B$22=$I$41,H45,H61)))) -> 0.01 | I79: 0.01 | J79: 0.011 | K79: 0.012 | L79: 0.012
D80: =IF(AND($Q$11>=$E80,$Q$11<=$G80),2,"") ->  | E80: 60 | F80: - | G80: 89 | H80: 0.013 | I80: 0.013 | J80: 0.014 | K80: 0.015 | L80: 0.015
D81: =IF(AND($Q$11>=$E81,$Q$11<=$G81),3,"") ->  | E81: 90 | F81: - | G81: 119 | H81: 0.02 | I81: 0.02 | J81: 0.021 | K81: 0.022 | L81: 0.022
D82: =IF(AND($Q$11>=$E82,$Q$11<=$G82),4,"") ->  | E82: 120 | F82: - | G82: 179 | H82: 0.025 | I82: 0.025 | J82: 0.026 | K82: 0.027 | L82: 0.027
D83: =IF(AND($Q$11>=$E83,$Q$11<=$G83),5,"") ->  | E83: 180 | F83: - | G83: 269 | H83: 0.032 | I83: 0.032 | J83: 0.035 | K83: 0.035 | L83: 0.035
D84: =IF(AND($Q$11>=$E84,$Q$11<=$G84),6,"") ->  | E84: 270 | F84: - | G84: 359 | H84: 0.035 | I84: 0.035 | J84: 0.036 | K84: 0.037 | L84: 0.037
D85: =IF(AND($Q$11>=$E85,$Q$11<=$G85),7,"") -> 7 | E85: =G84+1 -> 360 | F85: - | G85: 539 | H85: 0.043 | I85: 0.043 | J85: 0.044 | K85: 0.045 | L85: 0.045
D86: =IF(AND($Q$11>=$E86,$Q$11<=$G86),8,"") ->  | E86: =G85+1 -> 540 | F86: - | G86: 719 | H86: 0.0455 | I86: 0.0455 | J86: 0.0465 | K86: 0.0475 | L86: 0.0475
D87: =IF(AND($Q$11>=$E87,$Q$11<=$G87),9,"") ->  | E87: =G86+1 -> 720 | F87: - | G87: 1080 | H87: 0.048 | I87: 0.048 | J87: 0.049 | K87: 0.05 | L87: 0.05
D88: =IF(AND($Q$11>=$E88),10,"") ->  | E88: =G87+1 -> 1081 | F88: - | G88: mas | H88: =IF($B$9=3,"MIN. 100,000 u.m.",IF($B$22=$I$9,H22,IF($B$22=$I$25,H38,IF($B$22=$I$41,H54,H70)))) -> 0.048 | I88: =IF($B$9=3,"MIN. 100,000 u.m.",IF($B$22=$I$9,I22,IF($B$22=$I$25,I38,IF($B$22=$I$41,I54,I70)))) -> 0.048 | J88: =IF($B$9=3,IF($Q$6<100000,"MIN. 100,000 u.m.",IF($Q$11<1800,"MIN. 1,800 días",IF($B$22=$I$9,J22,IF($B$22=$I$25,J38,IF($B$22=$I$41,J54,J70))))),IF($B$22=$I$9,J22,IF($B$22=$I$25,J38,IF($B$22=$I$41,J54,J70)))) -> 0.049 | K88: =IF($B$22=$I$9,K22,IF($B$22=$I$25,K38,IF($B$22=$I$41,K54,K70))) -> 0.05 | L88: =IF($B$22=$I$9,L22,IF($B$22=$I$25,L38,IF($B$22=$I$41,L54,L70))) -> 0.05
W127: *Plazo máximo de simulación 10 años ó 3,600 días.
